fUST/lending_fUST_20251004
["ID","MTS","AMOUNT","RATE_DAILY","PERIOD"]
[389153234,1759591899705,-503.54,0.00021369,2]
[389153235,1759591899714,-552.14,0.00021369,2]
[389153236,1759591899723,-500.0,0.00021369,2]
[389153237,1759591899733,-500.0,0.00021369,2]
[389153238,1759591899742,-500.0,0.00021369,2]
[389153239,1759591899751,-500.0,0.00021369,2]
[389153240,1759591899761,-500.0,0.00021369,2]
[389153241,1759591899771,-500.0,0.00021369,2]
[389153242,1759591899780,-983.77,0.00021369,2]
[389153243,1759591899789,-717.9,0.00021369,2]
[389153244,1759591899798,-500.0,0.00021369,2]
[389153245,1759591899807,-151.0,0.00021369,2]
[389153246,1759591899817,-195.3323338,0.00021369,2]
[389153247,1759591899826,-535.53,0.00021369,2]
[389153248,1759591899836,-500.0,0.00021369,2]
[389153249,1759591899849,-539.76,0.00021369,2]
[389153250,1759591899859,-151.0,0.00021369,2]
[389153251,1759591899869,-151.0,0.00021369,2]
[389153252,1759591899879,-151.0,0.00021369,2]
[389153253,1759591899889,-1081.73,0.00021369,2]
[389153254,1759591899899,-785.95,0.00021369,2]
[389153255,1759591899908,-500.0,0.00021369,2]
[389153256,1759591899918,-500.0,0.00021369,2]
[389153257,1759591899928,-996.16,0.00021369,2]
[389153258,1759591899939,-500.0,0.00021369,2]
[389153259,1759591899948,-335.81389104,0.00021369,2]
[389153260,1759591899958,-1061.25,0.00021369,2]
[389153261,1759591899967,-500.0,0.00021369,2]
[389153262,1759591899977,-151.0,0.00021369,2]
[389153263,1759591899987,-1035.1,0.00021369,2]
[389153264,1759591899997,-500.0,0.00021369,2]
[389153265,1759591900006,-571.62,0.00021369,2]
[389153266,1759591900016,-500.0,0.00021369,2]
[389153267,1759591900025,-940.09,0.00021369,2]
[389153268,1759591900035,-500.0,0.00021369,2]
[389153269,1759591900045,-500.0,0.00021369,2]
[389153270,1759591900054,-223.853656,0.00021369,2]
[389153271,1759591900063,-685.26,0.00021369,2]
[389153272,1759591900074,-1089.32,0.00021369,2]
[389153273,1759591900083,-521.57,0.00021369,2]
[389153274,1759591900093,-500.0,0.00021369,2]
[389153275,1759591900103,-500.0,0.00021369,2]
[389153276,1759591900112,-500.0,0.00021369,2]
[389153277,1759591900122,-500.0,0.00021369,2]
[389153278,1759591900132,-500.0,0.00021369,2]
[389153279,1759591900143,-500.0,0.00021369,2]
[389153280,1759591900154,-500.0,0.00021369,2]
[389153281,1759591900164,-156.87135269,0.00021369,2]
[389153282,1759591900176,-500.0,0.00021369,2]
[389153283,1759591900185,-556.89,0.00021369,2]
[389153284,1759591900195,-500.0,0.00021369,2]
[389153285,1759591900204,-500.0,0.00021369,2]
[389153286,1759591900214,-500.0,0.00021369,2]
[389153287,1759591900224,-935.25,0.00021369,2]
[389153288,1759591900233,-500.0,0.00021369,2]
[389153289,1759591900243,-638.24,0.00021369,2]
[389153290,1759591900253,-500.0,0.00021369,2]
[389153291,1759591900264,-3190.15,0.00021369,2]
[389153292,1759591900274,-500.0,0.00021369,2]
[389153293,1759591900284,-500.0,0.00021369,2]
[389153294,1759591900294,-500.0,0.00021369,2]
[389153295,1759591900303,-1767.35,0.00021369,2]
[389153296,1759591900313,-500.0,0.00021369,2]
[389153297,1759591900322,-500.0,0.00021369,2]
[389153298,1759591900332,-1021.71,0.00021369,2]
[389153299,1759591900341,-500.0,0.00021369,2]
[389153300,1759591900351,-722.22,0.00021369,2]
[389153301,1759591900360,-512.79,0.00021369,2]
[389153302,1759591900369,-500.0,0.00021369,2]
[389153303,1759591900379,-1130.19,0.00021369,2]
[389153304,1759591900389,-500.0,0.00021369,2]
[389153305,1759591900399,-594.94,0.00021369,2]
[389153306,1759591900408,-500.0,0.00021369,2]
[389153307,1759591900417,-1634.65,0.00021369,2]
[389153308,1759591900427,-755.21,0.00021369,2]
[389153309,1759591900437,-638.84,0.00021369,2]
[389153310,1759591900446,-1184.66,0.00021369,2]
[389153311,1759591900455,-1037.44,0.00021369,2]
[389153312,1759591900465,-500.0,0.00021369,2]
[389153313,1759591900474,-500.0,0.00021369,2]
[389153314,1759591900484,-500.0,0.00021369,2]
[389153315,1759591900493,-1102.84,0.00021369,2]
[389153316,1759591900502,-500.0,0.00021369,2]
[389153317,1759591900512,-500.0,0.00021369,2]
[389153318,1759591900521,-500.0,0.00021369,2]
[389153319,1759591900530,-500.0,0.00021369,2]
[389153320,1759591900540,-500.0,0.00021369,2]
[389153321,1759591900549,-888.19,0.00021369,2]
[389153322,1759591900558,-500.0,0.00021369,2]
[389153323,1759591900568,-707.88,0.00021369,2]
[389153324,1759591900577,-500.0,0.00021369,2]
[389153325,1759591900586,-3472.11,0.00021369,2]
[389153326,1759591900596,-500.0,0.00021369,2]
[389153327,1759591900605,-607.97,0.00021369,2]
[389153328,1759591900614,-500.0,0.00021369,2]
[389153329,1759591900624,-2253.27,0.00021369,2]
[389153330,1759591900633,-500.0,0.00021369,2]
[389153331,1759591900643,-500.0,0.00021369,2]
[389153332,1759591900653,-1207.5,0.00021369,2]
[389153333,1759591900662,-896.72,0.00021369,2]
[389153334,1759591900672,-500.0,0.00021369,2]
[389153335,1759591900683,-1747.71,0.00021369,2]
[389153336,1759591900692,-500.0,0.00021369,2]
[389153337,1759591900702,-500.0,0.00021369,2]
[389153338,1759591900711,-595.63,0.00021369,2]
[389153339,1759591900720,-500.0,0.00021369,2]
[389153340,1759591900729,-827.71,0.00021369,2]
[389153341,1759591900738,-195.97841364,0.00021369,2]
[389153342,1759591900748,-504.25,0.00021369,2]
[389153343,1759591900759,-500.0,0.00021369,2]
[389153344,1759591900768,-890.07,0.00021369,2]
[389153345,1759591900778,-500.0,0.00021369,2]
[389153346,1759591900788,-914.63,0.00021369,2]
[389153347,1759591900798,-1015.82,0.00021369,2]
[389153348,1759591900807,-196.46238675,0.00021369,2]
[389153349,1759591900817,-500.0,0.00021369,2]
[389153350,1759591900826,-500.0,0.00021369,2]
[389153351,1759591900836,-500.0,0.00021369,2]
[389153352,1759591900847,-532.07,0.00021369,2]
[389153353,1759591900859,-870.38,0.00021369,2]
[389153354,1759591900868,-500.0,0.00021369,2]
[389153355,1759591900877,-3160.55,0.00021369,2]
[389153356,1759591900887,-1519.75,0.00021369,2]
[389153357,1759591900896,-359.8042534,0.00021369,2]
[389153358,1759591900906,-1300.89,0.00021369,2]
[389153359,1759591900915,-2067.67,0.00021369,2]
[389153360,1759591900925,-500.0,0.00021369,2]
[389153361,1759591900935,-614.77,0.00021369,2]
[389153362,1759591900944,-857.26,0.00021369,2]
[389153363,1759591900956,-560.4,0.00021369,2]
[389153364,1759591900968,-731.76,0.00021369,2]
[389153365,1759591900978,-500.0,0.00021369,2]
[389153366,1759591900988,-1254.52,0.00021369,2]
[389153367,1759591900998,-500.0,0.00021369,2]
[389153368,1759591901007,-500.0,0.00021369,2]
[389153369,1759591901017,-1479.56,0.00021369,2]
[389153370,1759591901027,-3943.88,0.00021369,2]
[389153371,1759591901036,-500.0,0.00021369,2]
[389153372,1759591901046,-500.0,0.00021369,2]
[389153373,1759591901057,-1175.17,0.00021369,2]
[389153374,1759591901066,-1420.43,0.00021369,2]
[389153375,1759591901076,-500.0,0.00021369,2]
[389153376,1759591901085,-3237.92,0.00021369,2]
[389153377,1759591901095,-500.0,0.00021369,2]
[389153378,1759591901105,-1919.12,0.00021369,2]
[389153379,1759591901114,-968.29,0.00021369,2]
[389153380,1759591901127,-668.17,0.00021369,2]
[389153381,1759591901142,-4834.1,0.00021369,2]
[389153382,1759591901153,-863.7,0.00021369,2]
[389153383,1759591901162,-4308.41,0.00021369,2]
[389153384,1759591901172,-500.0,0.00021369,2]
[389153385,1759591901183,-1158.05,0.00021369,2]
[389153386,1759591901193,-500.0,0.00021369,2]
[389153387,1759591901203,-1128.4,0.00021369,2]
[389153388,1759591901212,-500.0,0.00021369,2]
[389153389,1759591901221,-1888.79,0.00021369,2]
[389153390,1759591901231,-500.0,0.00021369,2]
[389153391,1759591901241,-500.0,0.00021369,2]
[389153392,1759591901251,-3598.98,0.00021369,2]
[389153393,1759591901260,-500.0,0.00021369,2]
[389153394,1759591901269,-500.0,0.00021369,2]
[389153395,1759591901278,-3279.78,0.00021369,2]
[389153396,1759591901288,-2623.19,0.00021369,2]
[389153397,1759591901298,-500.0,0.00021369,2]
[389153398,1759591901307,-1046.7,0.00021369,2]
[389153399,1759591901317,-500.0,0.00021369,2]
[389153400,1759591901326,-500.0,0.00021369,2]
[389153401,1759591901336,-500.0,0.00021369,2]
[389153402,1759591901346,-500.0,0.00021369,2]
[389153403,1759591901355,-550.31418726,0.00021369,2]
[389153404,1759591901364,-916.44,0.00021369,2]
[389153405,1759591901374,-649.69,0.00021369,2]
[389153406,1759591901384,-500.0,0.00021369,2]
[389153407,1759591901393,-716.0,0.00021369,2]
[389153408,1759591901403,-502.19,0.00021369,2]
[389153409,1759591901413,-692.99,0.00021369,2]
[389153410,1759591901423,-1677.96,0.00021369,2]
[389153411,1759591901434,-500.0,0.00021369,2]
[389153412,1759591901444,-725.08,0.00021369,2]
[389153413,1759591901454,-543.32,0.00021369,2]
[389153414,1759591901464,-500.0,0.00021369,2]
[389153415,1759591901474,-2622.01,0.00021369,2]
[389153416,1759591901483,-1956.57,0.00021369,2]
[389153417,1759591901492,-314.39204716,0.00021369,2]
[389153418,1759591901502,-685.43,0.00021369,2]
[389153419,1759591901512,-4582.94,0.00021369,2]
[389153420,1759591901521,-1066.95,0.00021369,2]
[389153421,1759591901531,-620.36,0.00021369,2]
[389153422,1759591901541,-1558.65,0.00021369,2]
[389153423,1759591901550,-500.0,0.00021369,2]
[389153424,1759591901559,-500.0,0.00021369,2]
[389153425,1759591901569,-583.58,0.00021369,2]
[389153426,1759591901578,-850.74,0.00021369,2]
[389153427,1759591901588,-782.55,0.00021369,2]
[389153428,1759591901598,-500.0,0.00021369,2]
[389153429,1759591901608,-367.61138401,0.00021369,2]
[389153430,1759591901618,-500.0,0.00021369,2]
[389153431,1759591901628,-1154.37,0.00021369,2]
[389153432,1759591901637,-837.9,0.00021369,2]
[389153433,1759591901647,-2615.62,0.00021369,2]
[389153434,1759591901656,-613.77,0.00021369,2]
[389153435,1759591901666,-695.31,0.00021369,2]
[389153436,1759591901675,-633.24,0.00021369,2]
[389153437,1759591901685,-3304.75,0.00021369,2]
[389153438,1759591901695,-1142.91,0.00021369,2]
[389153439,1759591901704,-500.0,0.00021369,2]
[389153440,1759591901714,-1593.05,0.00021369,2]
[389153441,1759591901724,-1681.94,0.00021369,2]
[389153442,1759591901734,-2044.74,0.00021369,2]
[389153443,1759591901743,-500.0,0.00021369,2]
[389153444,1759591901753,-500.0,0.00021369,2]
[389153445,1759591901762,-943.18,0.00021369,2]
[389153446,1759591901772,-1325.84,0.00021369,2]
[389153447,1759591901782,-500.0,0.00021369,2]
[389153448,1759591901792,-1462.47,0.00021369,2]
[389153449,1759591901801,-894.67,0.00021369,2]
[389153450,1759591901810,-1441.01,0.00021369,2]
[389153451,1759591901820,-948.86,0.00021369,2]
[389153452,1759591901830,-582.49,0.00021369,2]
[389153453,1759591901843,-1083.58,0.00021369,2]
[389153454,1759591901853,-2269.4,0.00021369,2]
[389153455,1759591901862,-859.66,0.00021369,2]
[389153456,1759591901872,-7279.62,0.00021369,2]
[389153457,1759591901882,-500.0,0.00021369,2]
[389153458,1759591901891,-885.0,0.00021369,2]
[389153459,1759591901901,-500.0,0.00021369,2]
[389153460,1759591901912,-488.13373396,0.00021369,2]
[389153461,1759591901922,-500.0,0.00021369,2]
[389153462,1759591901932,-500.0,0.00021369,2]
[389153463,1759591901942,-2242.57,0.00021369,2]
[389153464,1759591901952,-521.71,0.00021369,2]
[389153465,1759591901962,-1253.86,0.00021369,2]
[389153466,1759591901972,-1820.23,0.00021369,2]
[389153467,1759591901981,-1593.62,0.00021369,2]
[389153468,1759591901991,-500.0,0.00021369,2]
[389153469,1759591902001,-500.0,0.00021369,2]
[389153470,1759591902011,-2434.85,0.00021369,2]
[389153471,1759591902021,-500.0,0.00021369,2]
[389153472,1759591902031,-500.0,0.00021369,2]
[389153473,1759591902043,-983.67,0.00021369,2]
[389153474,1759591902053,-1438.86,0.00021369,2]
[389153475,1759591902063,-3420.09,0.00021369,2]
[389153476,1759591902072,-1155.35,0.00021369,2]
[389153477,1759591902081,-500.0,0.00021369,2]
[389153478,1759591902091,-500.0,0.00021369,2]
[389153479,1759591902101,-883.76,0.00021369,2]
[389153480,1759591902111,-500.0,0.00021369,2]
[389153481,1759591902120,-1284.14,0.00021369,2]
[389153482,1759591902130,-669.76,0.00021369,2]
[389153483,1759591902140,-5883.16,0.00021369,2]
[389153484,1759591902150,-5418.8,0.00021369,2]
[389153485,1759591902159,-500.0,0.00021369,2]
[389153486,1759591902169,-500.0,0.00021369,2]
[389153487,1759591902180,-1049.37,0.00021369,2]
[389153488,1759591902190,-659.62,0.00021369,2]
[389153489,1759591902199,-500.0,0.00021369,2]
[389153490,1759591902210,-599.3,0.00021369,2]
[389153491,1759591902219,-500.0,0.00021369,2]
[389153492,1759591902228,-6787.62,0.00021369,2]
[389153493,1759591902238,-1550.12,0.00021369,2]
[389153494,1759591902248,-645.14,0.00021369,2]
[389153495,1759591902258,-1658.15,0.00021369,2]
[389153496,1759591902267,-500.0,0.00021369,2]
[389153497,1759591902277,-686.1,0.00021369,2]
[389153498,1759591902286,-500.0,0.0002137,2]
[389153499,1759591902296,-151.0,0.0002137,2]
[389153500,1759591902306,-151.0,0.0002137,2]
[389153501,1759591902315,-151.0,0.0002137,2]
[389153502,1759591902325,-500.0,0.0002137,2]
[389153503,1759591902335,-151.0,0.0002137,2]
[389153504,1759591902345,-500.0,0.0002137,2]
[389153505,1759591902354,-500.0,0.0002137,2]
[389153506,1759591902363,-151.0,0.0002137,2]
[389153507,1759591902372,-500.0,0.0002137,2]
[389153508,1759591902381,-151.0,0.0002137,2]
[389153509,1759591902391,-500.0,0.0002137,2]
[389153510,1759591902400,-500.0,0.0002137,2]
[389153511,1759591902409,-151.0,0.0002137,2]
[389153512,1759591902566,-500.0,0.0002137,2]
[389153513,1759591902576,-500.0,0.0002137,2]
[389153514,1759591902586,-500.0,0.0002137,2]
[389153515,1759591902595,-151.0,0.0002137,2]
[389153516,1759591902604,-151.0,0.0002137,2]
[389153517,1759591902615,-1443.0,0.0002137,2]
[389153518,1759591902624,-500.0,0.0002137,2]
[389153519,1759591902633,-158.93215069,0.0002137,2]
[389153520,1759591902643,-500.0,0.0002137,2]
[389153521,1759591902652,-230.93081101,0.0002137,2]
[389153522,1759591902661,-151.0,0.0002137,2]
[389153523,1759591902672,-500.0,0.0002137,2]
[389153524,1759591902683,-151.0,0.0002137,2]
[389153525,1759591902692,-151.90992716,0.0002137,2]
[389153526,1759591902701,-151.0,0.0002137,2]
[389153527,1759591902710,-151.0,0.0002137,2]
[389153528,1759591902719,-151.6053787,0.0002137,2]
[389153529,1759591902729,-151.0,0.0002137,2]
[389153530,1759591902739,-151.0,0.0002137,2]
[389153531,1759591902749,-264.37696693,0.0002137,2]
[389153532,1759591902759,-500.0,0.0002137,2]
[389153533,1759591902769,-151.0,0.0002137,2]
[389153534,1759591902779,-151.63981765,0.0002137,2]
[389153535,1759591902788,-151.0,0.0002137,2]
[389153536,1759591902797,-151.0,0.0002137,2]
[389153537,1759591902808,-500.0,0.0002137,2]
[389153538,1759591902817,-500.0,0.0002137,2]
[389153539,1759591902827,-500.0,0.0002137,2]
[389153540,1759591902837,-321.32785631,0.00021372,2]
[389153541,1759591902852,-1285.31142525,0.00021372,2]
[389153542,1759591902862,-2891.95070681,0.00021372,2]
[389153543,1759591902872,-5141.245701,0.00021372,2]
[389153544,1759591902882,-8033.19640782,0.00021372,2]
[389153545,1759591902892,-454.98761177,0.00021372,2]
[389153546,1759591902902,-1819.9504471,0.00021372,2]
[389153547,1759591902912,-4094.88850597,0.00021372,2]
[389153548,1759591902921,-7272.5219866,0.00021372,2]
[389153549,1759591902932,-476.0,0.00021375,2]
[389153550,1759591902942,-340.07355114,0.00021377,2]
[389153551,1759591902952,-1360.29420457,0.00021377,2]
[389153552,1759591902961,-3060.66196029,0.00021377,2]
[389153553,1759591902971,-5435.73564148,0.00021377,2]
[389153554,1759591902981,-435.08508038,0.00021379,2]
[389153555,1759591902991,-13839.2583775,0.0002141,2]
[389153556,1759591903000,-500.0,0.00021411,2]
[389153557,1759591903010,-2000.0,0.00021416,2]
[389153558,1759591903020,-1552.06088064,0.00021416,2]
[389153559,1759591903030,-2000.0,0.00021416,2]
[389153560,1759591903040,-2000.0,0.00021416,2]
[389153561,1759591903050,-1740.55142135,0.00021416,2]
[389153562,1759591903060,-2000.0,0.00021416,2]
[389153563,1759591903070,-2000.0,0.00021416,2]
[389153564,1759591903080,-909.51256996,0.00021416,2]
[389153565,1759591903090,-2000.0,0.00021416,2]
[389153566,1759591903100,-2000.0,0.00021416,2]
[389153567,1759591903110,-2000.0,0.00021416,2]
[389153568,1759591903120,-2000.0,0.00021416,2]
[389153569,1759591903130,-2000.0,0.00021416,2]
[389153570,1759591903139,-2119.38872349,0.00021416,2]
[389153571,1759591903149,-476.0,0.00021466,2]
[389153572,1759591903159,-500.0,0.00021477,2]
[389153573,1759591903168,-210.0,0.00021499,2]
[389153574,1759591903180,-476.0,0.00021508,2]
[389153575,1759591903190,-600.0,0.00021525,2]
[389153576,1759591903200,-166.0,0.00021608,2]
[389153577,1759591903210,-343.08103649,0.00021616,2]
[389153578,1759591903220,-1453.64626139,0.00021616,2]
[389153579,1759591903230,-2000.0,0.00021616,2]
[389153580,1759591903240,-527.66942394,0.00021616,2]
[389153581,1759591903250,-2000.0,0.00021616,2]
[389153582,1759591903260,-2000.0,0.00021616,2]
[389153583,1759591903269,-2000.0,0.00021616,2]
[389153584,1759591903279,-826.29413717,0.00021643,2]
[389153585,1759591903288,-151.0,0.00021643,2]
[389153586,1759591903298,-151.0,0.00021643,2]
[389153587,1759591903308,-151.0,0.00021643,2]
[389153588,1759591903317,-157.0014497,0.00021643,2]
[389153589,1759591903327,-500.0,0.00021643,2]
[389153590,1759591903336,-226.527849,0.00021643,2]
[389153591,1759591903346,-192.17565635,0.00021643,2]
[389153592,1759591903356,-1039.39,0.00021643,2]
[389153593,1759591903366,-507.83,0.00021643,2]
[389153594,1759591903376,-151.0,0.00021643,2]
[389153595,1759591903385,-151.0,0.00021643,2]
[389153596,1759591903395,-151.0,0.00021643,2]
[389153597,1759591903404,-151.0,0.00021643,2]
[389153598,1759591903414,-500.0,0.00021643,2]
[389153599,1759591903424,-1109.72,0.00021643,2]
[389153600,1759591903434,-151.0,0.00021643,2]
[389153601,1759591903444,-151.0,0.00021643,2]
[389153602,1759591903454,-658.4,0.00021643,2]
[389153603,1759591903464,-500.0,0.00021643,2]
[389153604,1759591903472,-362.93848032,0.00021643,2]
[389153605,1759591903482,-500.0,0.00021643,2]
[389153606,1759591903491,-151.0,0.00021643,2]
[389153607,1759591903500,-1722.53,0.00021643,2]
[389153608,1759591903510,-500.0,0.00021643,2]
[389153609,1759591903519,-500.0,0.00021643,2]
[389153610,1759591903529,-500.0,0.00021643,2]
[389153611,1759591903539,-500.0,0.00021643,2]
[389153612,1759591903549,-500.0,0.00021643,2]
[389153613,1759591903559,-151.0,0.00021643,2]
[389153614,1759591903569,-151.0,0.00021643,2]
[389153615,1759591903578,-561.02,0.00021643,2]
[389153616,1759591903588,-500.0,0.00021643,2]
[389153617,1759591903598,-500.0,0.00021643,2]
[389153618,1759591903607,-606.7,0.00021643,2]
[389153619,1759591903616,-151.0,0.00021643,2]
[389153620,1759591903626,-605.37579285,0.00021643,2]
[389153621,1759591903635,-576.96,0.00021643,2]
[389153622,1759591903645,-500.0,0.00021643,2]
[389153623,1759591903655,-403.83423856,0.00021643,2]
[389153624,1759591903664,-815.78,0.00021643,2]
[389153625,1759591903674,-500.0,0.00021643,2]
[389153626,1759591903684,-500.0,0.00021643,2]
[389153627,1759591903694,-551.35,0.00021643,2]
[389153628,1759591903704,-503.54,0.00021643,2]
[389153629,1759591903713,-552.14,0.00021643,2]
[389153630,1759591903722,-151.0,0.00021643,2]
[389153631,1759591903732,-500.0,0.00021643,2]
[389153632,1759591903741,-500.0,0.00021643,2]
[389153633,1759591903751,-500.0,0.00021643,2]
[389153634,1759591903760,-500.0,0.00021643,2]
[389153635,1759591903770,-156.755195,0.00021643,2]
[389153636,1759591903779,-500.0,0.00021643,2]
[389153637,1759591903788,-983.77,0.00021643,2]
[389153638,1759591903798,-717.9,0.00021643,2]
[389153639,1759591903808,-500.0,0.00021643,2]
[389153640,1759591903817,-535.53,0.00021643,2]
[389153641,1759591903826,-422.99749966,0.00021643,2]
[389153642,1759591903836,-539.76,0.00021643,2]
[389153643,1759591903851,-1081.73,0.00021643,2]
[389153644,1759591903861,-785.95,0.00021643,2]
[389153645,1759591903870,-500.0,0.00021643,2]
[389153646,1759591903879,-368.50000764,0.00021643,2]
[389153647,1759591903889,-996.16,0.00021643,2]
[389153648,1759591903899,-500.0,0.00021643,2]
[389153649,1759591903908,-1061.25,0.00021643,2]
[389153650,1759591903919,-500.0,0.00021643,2]
[389153651,1759591903929,-500.0,0.00021643,2]
[389153652,1759591903939,-1035.1,0.00021643,2]
[389153653,1759591903950,-571.62,0.00021643,2]
[389153654,1759591903961,-500.0,0.00021643,2]
[389153655,1759591903970,-940.09,0.00021643,2]
[389153656,1759591903979,-500.0,0.00021643,2]
[389153657,1759591903988,-500.0,0.00021643,2]
[389153658,1759591903997,-685.26,0.00021643,2]
[389153659,1759591904006,-1089.32,0.00021643,2]
[389153660,1759591904015,-521.57,0.00021643,2]
[389153661,1759591904025,-500.0,0.00021643,2]
[389153662,1759591904034,-500.0,0.00021643,2]
[389153663,1759591904045,-500.0,0.00021643,2]
[389153664,1759591904054,-500.0,0.00021643,2]
[389153665,1759591904063,-500.0,0.00021643,2]
[389153666,1759591904073,-500.0,0.00021643,2]
[389153667,1759591904084,-500.0,0.00021643,2]
[389153668,1759591904095,-500.0,0.00021643,2]
[389153669,1759591904104,-500.0,0.00021643,2]
[389153670,1759591904114,-556.89,0.00021643,2]
[389153671,1759591904123,-153.41722808,0.00021643,2]
[389153672,1759591904132,-500.0,0.00021643,2]
[389153673,1759591904145,-935.25,0.00021643,2]
[389153674,1759591904155,-638.24,0.00021643,2]
[389153675,1759591904164,-500.0,0.00021643,2]
[389153676,1759591904174,-3190.15,0.00021643,2]
[389153677,1759591904184,-500.0,0.00021643,2]
[389153678,1759591904194,-500.0,0.00021643,2]
[389153679,1759591904204,-500.0,0.00021643,2]
[389153680,1759591904213,-1767.35,0.00021643,2]
[389153681,1759591904223,-500.0,0.00021643,2]
[389153682,1759591904233,-500.0,0.00021643,2]
[389153683,1759591904242,-1021.71,0.00021643,2]
[389153684,1759591904251,-500.0,0.00021643,2]
[389153685,1759591904260,-722.22,0.00021643,2]
[389153686,1759591904270,-512.79,0.00021643,2]
[389153687,1759591904279,-500.0,0.00021643,2]
[389153688,1759591904288,-1130.19,0.00021643,2]
[389153689,1759591904297,-500.0,0.00021643,2]
[389153690,1759591904307,-594.94,0.00021643,2]
[389153691,1759591904316,-500.0,0.00021643,2]
[389153692,1759591904326,-1634.65,0.00021643,2]
[389153693,1759591904336,-755.21,0.00021643,2]
[389153694,1759591904345,-638.84,0.00021643,2]
[389153695,1759591904355,-1184.66,0.00021643,2]
[389153696,1759591904364,-1037.44,0.00021643,2]
[389153697,1759591904374,-500.0,0.00021643,2]
[389153698,1759591904385,-287.50953385,0.00021643,2]
[389153699,1759591904395,-383.90824488,0.00021643,2]
[389153700,1759591904405,-1102.84,0.00021643,2]
[389153701,1759591904415,-536.72147794,0.00021643,2]
[389153702,1759591904424,-500.0,0.00021643,2]
[389153703,1759591904434,-500.0,0.00021643,2]
[389153704,1759591904444,-500.0,0.00021643,2]
[389153705,1759591904454,-500.0,0.00021643,2]
[389153706,1759591904463,-888.19,0.00021643,2]
[389153707,1759591904473,-500.0,0.00021643,2]
[389153708,1759591904483,-707.88,0.00021643,2]
[389153709,1759591904493,-500.0,0.00021643,2]
[389153710,1759591904504,-3472.11,0.00021643,2]
[389153711,1759591904514,-283.22526745,0.00021643,2]
[389153712,1759591904524,-607.97,0.00021643,2]
[389153713,1759591904533,-500.0,0.00021643,2]
[389153714,1759591904543,-2253.27,0.00021643,2]
[389153715,1759591904553,-500.0,0.00021643,2]
[389153716,1759591904563,-500.0,0.00021643,2]
[389153717,1759591904572,-1207.5,0.00021643,2]
[389153718,1759591904582,-896.72,0.00021643,2]
[389153719,1759591904592,-500.0,0.00021643,2]
[389153720,1759591904602,-1747.71,0.00021643,2]
[389153721,1759591904612,-500.0,0.00021643,2]
[389153722,1759591904621,-500.0,0.00021643,2]
[389153723,1759591904631,-595.63,0.00021643,2]
[389153724,1759591904641,-500.0,0.00021643,2]
[389153725,1759591904650,-827.71,0.00021643,2]
[389153726,1759591904660,-504.25,0.00021643,2]
[389153727,1759591904670,-500.0,0.00021643,2]
[389153728,1759591904681,-890.07,0.00021643,2]
[389153729,1759591904691,-500.0,0.00021643,2]
[389153730,1759591904701,-914.63,0.00021643,2]
[389153731,1759591904710,-1015.82,0.00021643,2]
[389153732,1759591904719,-500.0,0.00021643,2]
[389153733,1759591904729,-500.0,0.00021643,2]